bitfinex-derivatives/quotes_ETHF0:USTF0_20250621
["timestamp","ask_amount","ask_price","bid_price","bid_amount"]
[1750541699706,3.2078,2277.0,2276.1,103.031]
[1750541699907,3.2078,2278.4,2276.5,17.051875]
[1750541700251,0.8778,2278.0,2277.1,17.051875]
[1750541700437,3.2078,2278.6,2277.2,103.088]
[1750541700438,1.38080001,2278.4,2277.2,103.088]
[1750541700620,1.38080001,2277.7,2277.2,103.088]
[1750541700814,3.2078,2278.4,2277.2,103.088]
[1750541701111,3.2078,2278.1,2277.2,103.088]
[1750541701306,3.2078,2278.3,2277.3,17.051875]
[1750541701503,3.2078,2278.5,2277.4,5.7205]
[1750541701810,3.2078,2279.3,2277.5,3.2078]
[1750541702006,9.0877,2280.9,2278.7,17.051875]
[1750541702204,4.58860001,2280.4,2278.8,56.2125]
[1750541702402,3.2078,2279.6,2278.8,49.57399]
[1750541702709,3.2078,2277.0,2274.6,3.2078]
[1750541702904,3.2078,2274.5,2271.6,3.2078]
[1750541703206,56.3819,2276.9,2271.5,52.606]
[1750541703207,3.2078,2273.0,2271.5,52.606]
[1750541703412,3.2078,2273.9,2272.6,17.051875]
[1750541703606,5.8799,2275.6,2273.8,3.2078]
[1750541703806,4.58860001,2275.9,2274.4,3.2078]
[1750541704008,4.3173218,2276.0,2275.2,3.2078]
[1750541704202,5.8799,2277.6,2275.2,3.2078]
[1750541704203,3.2078,2278.3,2275.9,3.2078]
[1750541704407,3.2078,2278.3,2275.3,56.2225]
[1750541704408,3.2078,2278.3,2276.6,17.051875]
[1750541704604,0.87814,2277.2,2276.7,56.2507]
[1750541704815,3.2078,2278.0,2276.7,56.2507]
[1750541705220,0.87777,2278.1,2277.1,3.2078]
[1750541705510,3.2078,2279.0,2277.4,3.2078]
[1750541705716,3.2078,2278.4,2277.2,52.606]
[1750541705910,3.2078,2278.3,2277.2,51.47431]
[1750541706107,3.2078,2278.6,2277.2,51.47431]
[1750541706310,5.771,2278.9,2277.6,20.259675]
[1750541706311,3.2078,2278.9,2277.6,20.259675]
[1750541706510,0.87788,2277.8,2277.7,3.2078]
[1750541706711,0.87826,2276.8,2276.7,49.55983]
[1750541706910,3.2078,2277.0,2275.2,3.2078]
[1750541707108,3.2078,2276.3,2275.1,17.051875]
[1750541707310,3.2078,2277.3,2276.2,3.2078]
[1750541707516,5.5191,2278.9,2277.2,17.051875]
[1750541707812,5.5191,2278.9,2277.6,3.2078]
[1750541707813,3.2078,2278.9,2277.6,3.2078]
[1750541708007,2.19425,2278.3,2276.7,3.2078]
[1750541708209,2.19612,2276.4,2274.8,3.2078]
[1750541708413,3.2078,2275.3,2274.4,3.2078]
[1750541708614,5.5191,2276.3,2275.2,3.2078]
[1750541708809,2.19566,2276.9,2275.7,17.051875]
[1750541708810,3.2078,2276.9,2275.7,17.051875]
[1750541709012,2.19499,2277.6,2274.5,52.621]
[1750541709013,3.2078,2277.6,2276.2,1.75097]
[1750541709208,2.19652,2276.0,2273.8,50.522]
[1750541709413,3.2078,2274.5,2273.1,50.522]
[1750541709607,3.2078,2275.4,2273.8,17.051875]
[1750541709812,0.87954,2273.5,2273.4,3.1548526]
[1750541710014,3.2078,2273.6,2271.1,3.2078]
[1750541710217,3.2078,2272.0,2270.8,3.2078]
[1750541710417,0.88027,2271.7,2270.9,58.422]
[1750541710623,0.88033,2271.5,2270.9,58.422]
[1750541710813,0.88045,2271.2,2270.9,64.1910426]
[1750541711118,3.2078,2271.0,2269.6,50.522]
[1750541711317,50.522,2273.2,2269.7,103.149]
[1750541711318,3.2078,2270.9,2269.7,103.149]
[1750541711716,2.768906,2270.9,2269.7,108.9180426]
[1750541711913,3.2078,2271.8,2270.8,20.259675]
[1750541712113,0.87954,2273.5,2271.7,3.2078]
[1750541712316,3.2078,2274.4,2272.9,3.2078]
[1750541712512,3.2078,2274.4,2273.0,103.243]
[1750541712920,5.8618,2274.7,2273.2,3.2078]
[1750541713216,8.56934,2277.2,2273.2,3.2078]
[1750541713217,0.87864,2275.9,2274.3,3.2078]
[1750541713519,4.38924,2277.9,2273.3,5.7177072]
[1750541713520,2.19496,2277.6,2275.8,3.2078]
[1750541713821,2.19593,2276.6,2274.9,52.675]
[1750541714022,3.2078,2276.7,2275.2,3.2078]
[1750541714221,5.8408,2277.7,2276.0,3.2078]
[1750541714521,3.2078,2277.3,2276.1,50.572]
[1750541714718,3.2078,2277.3,2275.9,3.2078]
[1750541714915,0.87854,2276.1,2275.9,3.2078]
[1750541715118,3.2078,2277.7,2275.9,17.051875]
[1750541715321,9.0486,2278.4,2277.1,3.2078]
[1750541715624,9.0486,2278.4,2277.2,103.251]
[1750541715815,9.0486,2278.4,2277.3,50.572]
[1750541716017,0.87803,2277.4,2277.3,50.572]
[1750541716217,9.0486,2278.4,2277.3,50.572]
[1750541716525,9.0486,2278.4,2277.3,49.66362]
[1750541716526,0.87803,2277.4,2277.3,49.66362]
[1750541716823,3.2078,2278.1,2276.2,106.4588]
[1750541717118,3.2078,2277.8,2276.2,103.251]
[1750541717320,3.2078,2277.8,2276.3,5.9936]
[1750541717528,0.87782,2278.0,2277.3,3.2078]
[1750541717718,0.87761,2278.5,2277.5,3.2078]
[1750541717918,3.2078,2278.6,2277.8,3.2078]
[1750541718121,0.87764,2278.5,2277.8,3.2078]
[1750541718420,0.87736,2279.2,2277.9,50.569]
[1750541718622,0.87736,2279.2,2276.8,316.056]
[1750541718623,3.2078,2277.7,2275.8,3.2078]
[1750541718825,2.19636,2276.1,2274.1,50.569]
[1750541719023,3.2078,2276.3,2274.1,53.7768]
[1750541719226,3.2078,2276.3,2274.3,3.2078]
[1750541719227,0.87886,2275.3,2274.3,3.2078]
[1750541719429,3.2078,2277.7,2275.2,3.2078]
[1750541719727,9.1779,2278.9,2277.4,3.2078]
[1750541720030,2.19343,2279.2,2277.7,3.2078]
[1750541720031,0.87767,2278.4,2277.7,3.2078]
[1750541720217,3.2078,2279.2,2277.9,17.051875]
[1750541720419,0.87738,2279.1,2278.0,3.2078]
[1750541720622,0.8775,2278.8,2278.1,52.676]
[1750541720934,5.9701,2280.8,2278.7,3.2078]
[1750541720935,3.2078,2280.5,2278.7,3.2078]
[1750541721221,3.2078,2280.5,2279.0,3.2078]
[1750541721428,0.87718,2279.7,2279.1,5.8625]
[1750541721637,3.2078,2280.5,2279.0,3.2078]
[1750541721927,3.2078,2277.2,2274.7,3.2078]
[1750541722126,3.2078,2275.9,2274.8,52.669]
[1750541722327,3.2078,2277.3,2275.8,17.051875]
[1750541722626,4.38768,2278.8,2274.8,58.30206043]
[1750541722627,3.2078,2278.2,2276.7,3.2078]
[1750541722827,3.2078,2278.2,2276.9,3.2078]
[1750541723128,3.2078,2278.2,2276.0,8.219]
[1750541723129,3.2078,2277.0,2276.0,54.5966]
[1750541723331,3.2078,2277.4,2276.0,54.5966]
[1750541723522,3.2078,2278.2,2276.6,3.2078]
[1750541723718,2.19366,2278.9,2276.9,3.2078]
[1750541723925,3.2078,2277.1,2276.6,52.668]
[1750541724122,3.2078,2277.4,2276.6,52.668]
[1750541724317,3.2078,2277.7,2276.7,3.2078]
[1750541724631,3.2078,2277.7,2276.6,52.668]
[1750541725127,3.2078,2278.0,2276.6,52.668]
[1750541725627,3.2078,2278.0,2276.8,3.2078]
[1750541725928,3.2078,2278.0,2277.5,3.2078]
[1750541726224,3.2078,2278.5,2277.6,50.561]
[1750541726428,3.2078,2277.7,2276.0,3.2078]
[1750541726621,3.2078,2278.7,2277.5,3.2078]
[1750541726820,3.2078,2279.6,2278.5,3.2078]
[1750541727028,3.2078,2279.2,2279.0,0.01949614]
[1750541727229,3.2078,2279.6,2278.6,103.221]
[1750541727528,3.2078,2279.6,2278.7,3.2078]
[1750541727529,4.08505,2279.5,2278.7,3.2078]
[1750541727729,3.2078,2280.6,2279.4,3.2078]
[1750541727928,0.87682,2280.6,2279.8,3.2078]
[1750541728127,3.2078,2280.6,2279.9,112.1334]
[1750541728434,8.00029,2281.3,2279.9,112.1334]
[1750541728435,4.08483,2280.0,2279.9,49.63155]
[1750541728732,3.2078,2278.7,2278.3,50.557]
[1750541728923,4.38321,2281.1,2278.3,50.557]
[1750541728924,3.2078,2279.2,2278.3,50.557]
[1750541729228,3.2078,2280.1,2279.1,3.2078]
[1750541729431,3.2078,2280.4,2279.2,52.664]
[1750541729624,3.2078,2280.7,2280.3,3.2078]
[1750541729824,0.87721,2279.6,2279.5,50.547]
[1750541730031,3.2078,2279.9,2279.5,103.2]
[1750541730229,3.2078,2279.8,2279.5,103.2]
[1750541730430,3.2078,2279.9,2279.5,103.2]
[1750541730632,0.87704,2280.0,2279.5,103.2]
[1750541730829,3.2078,2280.6,2279.6,3.2078]
[1750541731040,2.19087,2281.8,2279.9,3.2078]
[1750541731239,3.2078,2281.9,2280.4,17.051875]
[1750541731536,0.87636,2281.8,2281.1,20.259675]
[1750541731734,3.2078,2282.1,2281.2,6.3388]
[1750541731932,0.87629,2282.0,2281.2,6.3388]
[1750541732136,3.2078,2282.9,2281.5,3.2078]
[1750541732440,7.29198,2281.7,2281.6,45.85776]
[1750541732632,4.08437,2281.2,2281.1,52.653]
[1750541732833,0.87657,2281.2,2281.1,52.653]
[1750541733025,3.2078,2281.7,2281.1,52.653]
[1750541733233,3.2078,2282.3,2281.2,3.2078]
[1750541733431,3.2078,2282.2,2281.5,3.2078]
[1750541733631,0.87637,2281.8,2281.2,3.2078]
[1750541733836,0.87639,2281.7,2281.2,3.2078]
[1750541734037,3.2078,2282.6,2281.3,6.3388]
[1750541734235,3.2078,2282.2,2281.3,6.3388]
[1750541734532,3.2078,2282.0,2281.4,52.624]
[1750541734738,3.2078,2281.7,2281.4,52.624]
[1750541735035,3.2078,2282.2,2281.6,3.2078]
[1750541735230,4.37687,2284.4,2281.4,52.624]
[1750541735231,3.2078,2283.8,2282.0,3.2078]
[1750541735426,3.34012235,2286.5,2281.4,57.624]
[1750541735427,3.2078,2284.5,2283.4,17.051875]
[1750541735623,0.08755034,2284.4,2283.6,3.2078]
[1750541735823,0.87557,2283.8,2283.7,103.102]
[1750541736242,3.2078,2284.1,2283.7,103.102]
[1750541736243,3.2078,2284.3,2283.7,103.102]
[1750541736531,0.87557,2283.8,2283.7,101.94141]
[1750541736737,0.87557,2283.8,2283.7,100.72064]
[1750541736930,3.2078,2284.7,2283.7,105.72064]
[1750541737132,3.2078,2284.7,2283.7,100.72064]
[1750541737439,3.2078,2286.0,2284.5,3.2078]
[1750541737633,0.08749289,2285.9,2285.3,3.2078]
[1750541737838,0.87492,2285.5,2285.4,103.102]
[1750541738031,3.2078,2285.5,2284.7,52.603]
[1750541738228,2.18731,2285.6,2284.6,3.2078]
[1750541738229,0.87523,2284.7,2284.6,3.2078]
[1750541738437,9.77391203,2285.4,2284.6,55.8108]
[1750541738638,0.08751586,2285.3,2284.9,3.2078]
[1750541738836,0.87511,2285.0,2284.9,3.2078]
[1750541739042,53.6718,2285.0,2282.6,3.2078]
[1750541739338,3.2078,2282.7,2281.6,17.051875]
[1750541739539,3.2078,2284.3,2282.5,3.2078]
[1750541739742,2.34115065,2287.0,2283.2,17.051875]
[1750541739743,3.29531586,2285.3,2283.2,17.051875]
[1750541739940,3.2078,2285.2,2283.9,20.259675]
[1750541740134,3.2078,2284.9,2284.0,52.567]
[1750541740438,3.2078,2284.1,2283.3,50.464]
[1750541740635,2.18932,2283.4,2282.8,52.567]
[1750541740938,4.08372,2282.9,2282.8,50.29321]
[1750541741140,4.08372,2282.9,2282.8,48.28836]
[1750541741440,3.2078,2284.7,2282.8,77.9142867]
[1750541741633,0.87588,2283.0,2282.9,7.86e-06]
[1750541741830,5.87588,2283.0,2282.9,7.86e-06]
[1750541742145,3.2078,2284.4,2282.9,55.45500786]
[1750541742331,3.2078,2285.4,2284.0,3.2078]
[1750541742530,0.87514,2285.0,2284.3,3.2078]
[1750541742734,0.87519,2284.8,2284.4,103.022]
[1750541742936,0.87513,2285.0,2284.6,3.2078]
[1750541743143,6.0663,2285.8,2284.9,3.2078]
[1750541743332,3.2078,2286.1,2285.0,3.2078]
[1750541743638,0.87508,2285.1,2285.0,3.2078]
[1750541744037,2.55133459,2285.8,2285.0,8.2078]
[1750541744237,6.2916,2287.1,2285.7,3.2078]
[1750541744442,6.2916,2287.1,2285.8,102.0148]
[1750541744644,6.2916,2287.1,2285.9,3.2078]
[1750541744846,8.47742,2287.1,2285.9,3.2078]
[1750541745038,6.2916,2287.1,2285.9,3.2078]
[1750541745241,0.87449,2286.7,2286.0,52.534]
[1750541745437,3.2078,2288.0,2286.5,3.2078]
[1750541745635,3.2078,2288.0,2286.9,3.2078]
[1750541745946,2.18502,2287.9,2287.0,98.764]
[1750541746442,3.2078,2287.1,2285.5,52.534]
[1750541746643,6.2916,2287.0,2286.0,3.2078]
[1750541746843,0.87445,2286.8,2286.0,3.2078]
[1750541747043,3.2078,2287.5,2286.0,3.2078]
[1750541747437,2.18552,2287.4,2286.0,3.2078]
[1750541747634,3.2078,2287.2,2286.0,3.2078]
[1750541747838,0.87446,2286.8,2286.2,3.2078]
[1750541748041,0.8745,2286.6,2286.5,3.2078]
[1750541748252,2.18541,2287.5,2286.5,55.7188]
[1750541748445,0.87446,2286.8,2286.5,3.2078]
[1750541748653,0.87446,2286.7,2286.6,52.511]
[1750541748849,9.4565,2287.6,2286.6,52.511]
[1750541749038,3.2078,2288.4,2287.5,3.2078]
[1750541749341,43.62894,2291.7,2287.8,3.2078]
[1750541749342,0.874,2287.9,2287.8,3.2078]
[1750541749546,0.87427,2287.2,2287.1,55.7188]
[1750541749737,0.87442,2286.8,2286.7,49.4168]
[1750541749935,3.2078,2287.9,2286.7,49.4168]
[1750541750138,0.87431,2287.1,2287.0,3.2078]
[1750541750339,0.87439,2286.9,2286.8,0.08745845]
[1750541750543,0.87439,2286.9,2286.8,51.58687845]
[1750541750844,5.0,2286.9,2286.3,3.2078]
[1750541751043,3.2078,2286.4,2285.3,3.2078]
[1750541751244,6.3797,2286.8,2285.4,52.57851203]
[1750541751543,3.2078,2288.1,2286.7,17.051875]
[1750541751751,3.2078,2288.1,2287.2,3.2078]
[1750541752048,3.2078,2287.8,2287.1,46.192]
[1750541752249,6.3797,2288.7,2287.2,46.192]
[1750541752440,3.2078,2288.6,2287.2,52.5907]
[1750541752639,2.18498,2288.0,2286.5,20.259675]
[1750541752839,3.2078,2287.1,2285.9,3.2078]
[1750541753045,0.87481,2285.8,2285.7,52.491]
[1750541753241,0.87481,2285.8,2285.7,52.57850054]
[1750541753637,5.87481,2285.8,2285.7,5.4e-07]
[1750541753853,5.87481,2285.8,2280.4,0.4291]
[1750541753854,8.2078,2285.8,2283.9,3.2078]
[1750541754049,3.2078,2285.6,2284.2,3.2078]
[1750541754251,0.87502,2285.3,2284.6,3.2078]
[1750541754458,0.87518,2284.9,2284.6,3.2078]
[1750541754754,3.2078,2285.6,2284.6,55.6858]
[1750541754961,6.2343,2285.5,2284.6,52.478]
[1750541755150,3.2078,2285.2,2284.6,52.478]
[1750541755454,0.87507,2285.2,2284.6,52.478]
[1750541755748,0.87504,2285.2,2284.6,72.737675]
[1750541755953,3.2078,2285.6,2284.6,20.259675]
[1750541756255,3.2078,2286.0,2284.7,52.478]
[1750541756454,6.4864,2286.3,2284.7,52.478]
[1750541756455,3.2078,2285.7,2284.7,52.478]
[1750541756753,0.87505,2285.2,2284.7,52.478]
[1750541756951,0.87515,2285.0,2284.7,52.478]
[1750541757254,3.2078,2285.2,2284.5,52.48]
[1750541757450,0.8746,2286.4,2284.9,3.2078]
[1750541757753,5.39298,2287.8,2286.2,20.259675]
[1750541757955,3.2078,2287.8,2286.3,46.182]
[1750541758154,3.2078,2286.9,2285.4,46.182]
[1750541758457,0.87496,2285.4,2285.3,52.48]
[1750541758847,5.87496,2285.4,2285.3,52.48]
[1750541759053,0.87496,2285.4,2285.3,52.56751586]
[1750541759248,8.2078,2285.4,2283.3,3.2078]
[1750541759454,3.2078,2283.4,2281.3,3.2078]
[1750541759755,3.2078,2283.4,2280.4,4.0728]
[1750541759756,3.2078,2281.4,2280.4,4.0728]
[1750541759953,3.2078,2281.2,2280.3,52.478]
[1750541760152,46.181,2282.9,2280.3,52.478]
[1750541760153,3.2078,2281.8,2280.8,17.051875]
[1750541760349,49.52112235,2283.8,2280.3,52.478]
[1750541760350,3.2078,2283.5,2281.5,17.051875]
[1750541760549,3.2078,2285.0,2282.9,3.2078]
[1750541760748,3.2078,2285.5,2284.2,3.2078]
[1750541760946,3.2078,2284.5,2283.8,52.478]
[1750541761254,3.2078,2283.9,2283.1,46.181]
[1750541761451,3.2078,2284.2,2283.1,46.181]
[1750541761849,0.87557,2283.8,2283.1,46.181]
[1750541762051,0.87577,2283.3,2283.1,46.181]
[1750541762261,0.8758,2283.2,2283.1,46.181]
[1750541762560,3.2078,2283.9,2283.1,46.181]
[1750541762755,0.87584,2283.1,2283.0,52.478]
[1750541762959,0.87584,2283.1,2281.9,3.2078]
[1750541762960,0.87589,2283.0,2281.9,3.2078]
[1750541763147,3.2078,2282.7,2281.8,52.49]
[1750541763344,3.2078,2282.7,2281.9,52.49]
[1750541763550,3.2078,2284.4,2282.5,3.2078]
[1750541763763,3.2078,2285.1,2284.0,17.051875]
[1750541763954,3.2078,2284.7,2283.2,52.49]
[1750541764150,3.2078,2284.7,2283.1,49.3998]
[1750541764151,3.2078,2284.1,2282.6,3.2078]
[1750541764360,0.87611,2282.4,2282.3,46.192]
[1750541764560,3.2078,2283.0,2282.0,52.49]
[1750541764759,3.2078,2282.8,2282.0,52.49]
[1750541764958,3.2078,2283.6,2282.5,3.2078]
[1750541765156,3.2078,2283.6,2282.6,46.192]
[1750541765456,0.876,2282.7,2282.6,46.192]
[1750541765755,3.2078,2282.9,2282.0,52.49]
[1750541765958,0.87612,2282.4,2282.0,55.6978]
[1750541766154,5.39789,2282.6,2281.0,3.2078]
[1750541766348,3.2078,2282.3,2281.1,52.505]
[1750541766554,3.2078,2282.2,2281.1,52.505]
[1750541766757,3.2078,2284.6,2282.1,3.2078]
[1750541766952,3.2078,2284.6,2282.7,20.259675]
[1750541767153,3.2078,2284.6,2283.0,3.2078]
[1750541767356,3.2078,2284.1,2283.1,52.505]
[1750541767757,0.87502,2285.3,2284.0,3.2078]
[1750541768061,0.87494,2285.5,2284.6,3.2078]
[1750541768254,3.2078,2286.3,2284.7,46.204]
[1750541768255,0.87487,2285.7,2284.7,46.204]
[1750541768456,3.2078,2286.3,2285.1,3.2078]
[1750541768659,3.2078,2287.1,2285.9,17.051875]
[1750541768865,3.2078,2288.8,2286.9,3.2078]
[1750541769071,6.7271,2289.1,2288.0,3.2078]
[1750541769264,6.7271,2289.1,2288.1,105.6399]
[1750541769563,3.2078,2289.0,2287.5,49.4128]
[1750541769758,3.2078,2289.0,2285.3,8.5308]
[1750541769759,3.2078,2287.6,2286.4,52.506]
[1750541769958,6.7271,2287.5,2286.4,52.506]
[1750541770259,0.08742629,2288.6,2287.4,3.2078]
[1750541770461,3.2078,2289.5,2288.4,3.2078]
[1750541770668,0.08742629,2289.3,2289.0,3.2078]
[1750541770958,3.2078,2290.6,2289.0,3.2078]
[1750541770959,0.08742629,2289.8,2289.0,3.2078]
[1750541771152,0.08742629,2289.8,2288.9,46.205]
[1750541771153,0.08742629,2290.2,2289.6,3.2078]
[1750541771353,0.02094151,2291.4,2289.7,52.506]
[1750541771553,0.08742629,2290.7,2289.7,52.506]
[1750541771758,0.08742629,2290.8,2290.6,3.2078]
[1750541772060,5.08742629,2290.8,2290.1,3.2078]
[1750541772255,0.08742629,2290.4,2290.1,3.2078]
[1750541772465,0.08742629,2290.2,2290.1,3.2078]
[1750541773269,5.08742629,2290.2,2289.3,3.2078]
[1750541773562,0.08742629,2290.1,2289.6,3.2078]
[1750541773754,0.08742629,2290.0,2289.6,3.2078]
[1750541774168,0.08742629,2289.7,2289.3,3.2078]
[1750541774566,0.87325,2289.9,2289.3,3.2078]
[1750541774758,0.08742629,2289.5,2289.3,3.2078]
[1750541774959,3.2078,2290.8,2289.3,3.2078]
[1750541775361,3.2078,2290.8,2289.5,17.051875]
[1750541775580,0.87318,2290.1,2289.6,3.2078]
[1750541775866,3.2078,2290.5,2289.3,3.2078]
[1750541776171,6.7767,2291.0,2289.4,52.439]
[1750541776471,8.95883,2291.0,2289.5,17.051875]
[1750541776770,0.87327,2289.9,2289.6,52.439]
[1750541776974,3.2078,2290.7,2289.6,52.439]
[1750541777165,3.2078,2290.7,2289.6,55.6468]
[1750541777365,0.87311,2290.3,2289.6,55.6468]
[1750541777565,0.87309,2290.4,2289.6,55.6468]
[1750541777763,0.87311,2290.3,2289.6,55.6468]
[1750541777967,6.7767,2291.0,2289.1,3.2078]
[1750541777968,3.2078,2290.7,2289.1,3.2078]
[1750541778267,0.87348,2289.3,2289.2,52.418]
[1750541778468,2.18277,2290.3,2289.2,52.418]
[1750541778469,3.2078,2290.5,2289.2,52.418]
[1750541778661,6.7767,2291.0,2289.7,3.2078]
[1750541778865,6.7767,2291.0,2289.8,6.6934]
[1750541779065,6.7767,2291.0,2289.9,46.128]
[1750541779470,2.18219,2290.9,2289.9,46.128]
[1750541779769,2.18228,2290.8,2289.9,46.128]
[1750541779974,0.8732,2290.1,2289.9,46.128]
[1750541780170,9.9845,2291.0,2289.9,46.128]
[1750541780474,0.87321,2290.0,2289.9,46.128]
[1750541780774,2.18219,2290.9,2289.9,46.128]
[1750541781073,0.8736,2289.0,2288.9,3.2078]
[1750541781371,3.2078,2289.4,2288.4,3.2078]
[1750541781570,3.2078,2289.4,2288.7,3.2078]
[1750541781783,3.2078,2290.7,2289.3,3.2078]
[1750541781982,3.2078,2290.7,2289.4,52.402]
[1750541782285,2.18441,2288.6,2287.4,3.2078]
[1750541782477,0.87432,2287.1,2287.0,3.2078]
[1750541782682,0.87432,2287.1,2285.8,11.259]
[1750541782683,3.2078,2287.2,2286.1,3.2078]
[1750541782881,3.2078,2288.8,2287.1,20.259675]
[1750541783182,3.2078,2288.7,2286.9,3.2078]
[1750541783389,3.2078,2287.0,2284.9,59.1526]
[1750541783682,3.2078,2287.1,2285.4,17.051875]
[1750541783889,3.2078,2287.4,2285.9,3.2078]
[1750541784087,2.18583,2287.1,2285.9,3.2078]
[1750541784384,2.18583,2287.1,2280.8,4.38367]
[1750541784385,2.18747,2285.4,2283.4,3.2078]
[1750541784580,3.2078,2284.9,2283.5,59.1646]
[1750541784778,3.2078,2285.8,2284.5,17.051875]
[1750541784987,0.87523,2284.8,2284.6,98.539]
[1750541785289,9.9751,2286.0,2284.5,98.539]
[1750541785584,9.9751,2286.0,2284.6,0.08754267]
[1750541785888,3.2078,2285.6,2284.6,0.08754267]
[1750541786089,3.2078,2285.2,2284.6,0.08754267]
[1750541786287,2.18744,2285.4,2284.6,2.67e-06]
[1750541786488,4.08304,2284.7,2284.6,2.67e-06]
[1750541786678,3.2078,2284.7,2284.6,2.67e-06]
[1750541786881,3.2078,2285.5,2284.6,5.00000267]
[1750541787191,9.9887,2285.9,2284.6,2.67e-06]
[1750541787593,3.2078,2286.3,2285.1,17.051875]
[1750541787783,3.2078,2286.3,2285.2,52.436]
[1750541788098,3.2078,2286.5,2285.3,46.143]
[1750541788282,46.143,2288.2,2285.3,46.143]
[1750541788283,3.2078,2287.3,2285.8,17.051875]
[1750541788484,3.2078,2287.3,2285.9,10.2599]
[1750541788790,15.69769017,2289.8,2285.9,10.2599]
[1750541788791,3.2078,2288.5,2287.1,3.2078]
[1750541788981,0.0873973,2288.4,2287.3,17.051875]
[1750541789380,0.87406,2288.1,2287.3,17.051875]
[1750541789583,3.2078,2288.5,2287.3,17.051875]
[1750541789778,6.7809,2288.9,2287.4,3.2078]
[1750541789779,3.2078,2288.8,2287.4,3.2078]
[1750541790083,3.2078,2289.6,2288.1,3.2078]
[1750541790281,7.4621,2289.6,2288.2,98.578]
[1750541790489,7.4621,2289.6,2288.4,3.2078]
[1750541790891,3.2078,2290.0,2289.2,3.2078]
[1750541791098,3.2078,2290.4,2289.5,3.2078]
[1750541791389,3.2078,2292.4,2290.2,3.2078]
[1750541791586,3.2078,2292.4,2290.9,20.259675]
[1750541791792,3.2078,2292.1,2291.0,46.142]
[1750541791981,0.0872448,2292.4,2291.0,46.142]
[1750541791982,3.2078,2291.6,2291.0,46.142]
[1750541792386,0.87286,2291.2,2291.0,46.142]
[1750541792587,10.6699,2292.0,2291.0,46.142]
[1750541792794,10.6699,2292.0,2291.1,3.2078]
[1750541793293,3.2078,2291.5,2291.0,46.142]
[1750541793597,3.2078,2291.7,2290.3,3.2078]
[1750541793787,3.2078,2290.7,2289.4,3.2078]
[1750541793990,3.2078,2290.4,2289.1,49.3268]
[1750541794184,0.87345,2289.7,2289.2,0.08736676]
[1750541794404,3.2078,2290.4,2289.2,0.08736676]
[1750541794587,3.2078,2290.2,2289.2,0.08736676]
[1750541794794,0.87357,2289.3,2289.2,6.76e-06]
[1750541794999,3.2078,2289.3,2287.8,24.405675]
[1750541795196,4.0815,2289.0,2287.9,98.527]
[1750541795394,7.0699,2289.2,2288.0,3.2078]
[1750541795594,0.87365,2289.1,2288.4,3.2078]
[1750541795794,0.87359,2289.3,2288.5,7.3887]
[1750541796094,2.18293,2290.4,2288.0,3.2078]
[1750541796095,3.2078,2289.1,2288.0,3.2078]
[1750541796389,3.2078,2289.1,2287.8,0.08742022]
[1750541796390,0.87411,2287.9,2287.8,0.08742022]
[1750541796596,0.87411,2287.9,2287.2,46.115]
[1750541796597,0.87434,2287.3,2287.2,46.115]
[1750541796801,3.2078,2287.5,2286.6,55.6108]
[1750541797094,3.2078,2288.2,2286.7,0.08746228]
[1750541797397,7.0699,2288.9,2287.9,3.2078]
[1750541797602,7.0699,2288.9,2288.0,105.9067]
[1750541797792,0.87387,2288.6,2288.0,98.518]
[1750541797986,3.2078,2288.7,2288.0,98.518]
[1750541798492,0.87384,2288.6,2288.0,98.518]
[1750541798691,3.2078,2288.7,2288.0,98.518]
[1750541798896,7.0699,2288.9,2288.0,98.518]
[1750541799102,3.2078,2289.0,2288.0,98.518]
[1750541799399,3.2078,2288.7,2288.0,98.518]
[1750541799594,0.87392,2288.4,2288.0,98.518]
[1750541799785,3.2078,2288.7,2288.0,98.518]
[1750541800189,3.2078,2288.7,2288.0,46.115]
[1750541800384,3.2078,2288.4,2287.6,55.6148]
[1750541800586,0.87418,2287.7,2287.6,52.407]
[1750541800795,3.2078,2287.8,2287.2,46.118]
[1750541800997,3.2078,2287.5,2286.9,3.2078]
[1750541801295,0.87431,2287.4,2286.9,3.2078]
[1750541801596,0.87434,2287.3,2286.6,55.6148]
[1750541801900,0.87429,2287.5,2286.6,55.6148]
[1750541802092,3.2078,2287.9,2286.8,3.2078]
[1750541802292,3.2078,2287.6,2286.8,3.2078]
[1750541802491,0.87434,2287.3,2286.8,3.2078]
[1750541802691,0.87434,2287.3,2286.6,52.4944661]
[1750541802692,3.2078,2287.3,2286.6,0.0874661]
[1750541802892,3.2078,2287.0,2286.6,0.0874661]
[1750541803092,3.2078,2287.0,2286.4,101.7418]
[1750541803294,0.87451,2286.9,2286.4,101.7418]
[1750541803594,3.2078,2287.6,2286.4,101.7418]
[1750541803798,3.2078,2287.3,2286.4,101.7418]
[1750541803995,3.2078,2287.9,2287.0,3.2078]
[1750541804296,3.2078,2287.5,2286.4,3.2078]
[1750541804600,43.68578,2289.0,2285.5,63.3761]
[1750541804601,3.2078,2286.5,2285.5,63.3761]
[1750541804800,3.2078,2286.5,2285.6,0.08750437]
[1750541804990,2.18584,2287.3,2285.6,0.08750437]
[1750541804991,3.2078,2286.9,2285.6,5.08750437]
[1750541805192,3.2078,2288.0,2286.6,3.2078]